bitfinex-derivatives/quotes_SOLF0:USTF0_20250509
["timestamp","ask_amount","ask_price","bid_price","bid_amount"]
[1746794324456,30.1373,172.09,172.02,5.8139]
[1746794324760,30.1373,172.09,171.99,460.26]
[1746794325750,5.8131,172.06,172.01,5.8142]
[1746794325955,30.1373,172.09,172.01,5.8142]
[1746794326156,30.1373,172.09,171.99,460.26]
[1746794326369,30.1373,172.09,172.0,5.8146]
[1746794326853,5.8133,172.05,172.01,5.8142]
[1746794327156,30.1373,172.09,171.97,1.9446]
[1746794328464,5.8122,172.08,172.04,5.8132]
[1746794328754,28.3,172.11,172.01,28.3]
[1746794328958,28.3,172.11,172.02,3.8544]
[1746794329160,5.8114,172.1,172.06,5.8125]
[1746794329962,34.1112,172.11,172.07,5.8124]
[1746794330662,5.8114,172.1,172.06,5.8126]
[1746794331364,28.3,172.11,171.98,460.32]
[1746794331554,12.8381085,172.09,171.94,2.01167202]
[1746794331959,12.8381085,172.09,171.94,1.0]
[1746794332161,5.8141,172.02,171.98,5.8153]
[1746794332865,5.8138,172.03,171.99,5.815]
[1746794333175,28.3,172.04,171.94,1.0]
[1746794333370,5.8145,172.01,171.94,29.3]
[1746794333569,28.3,172.04,171.94,29.3]
[1746794333876,5.8143,172.02,171.97,5.8155]
[1746794334266,28.3,172.04,171.97,5.8155]
[1746794334974,5.8141,172.02,171.97,5.8155]
[1746794335276,28.3,172.04,171.97,5.8155]
[1746794335574,5.8141,172.02,171.97,5.8155]
[1746794335770,5.8141,172.02,171.98,5.8153]
[1746794336074,28.3,172.03,171.94,1.0]
[1746794336272,28.3,172.03,171.99,5.8148]
[1746794336670,34.114,172.03,171.99,5.8148]
[1746794336976,28.3,172.03,172.0,5.8148]
[1746794337368,28.3,172.03,171.94,1.0]
[1746794337574,28.3,172.03,171.99,5.8149]
[1746794338075,34.1138,172.03,171.99,5.8149]
[1746794338269,28.3,172.03,171.98,5.8152]
[1746794338466,5.8143,172.02,171.98,5.8152]
[1746794338670,28.3,172.03,171.94,1.0]
[1746794339173,28.3,172.03,171.98,5.8151]
[1746794339673,34.1139,172.03,171.94,1.0]
[1746794339976,34.1139,172.03,171.99,5.815]
[1746794340977,28.3,172.03,171.94,1.0]
[1746794341177,39.2397085,172.05,171.94,1.0]
[1746794341579,5.8136,172.04,171.94,1.0]
[1746794342371,16.7529085,172.05,171.94,1.0]
[1746794342575,10.9397085,172.05,171.94,1.0]
[1746794342977,10.9397085,172.05,172.02,5.8141]
[1746794343979,10.9397085,172.05,171.94,1.0]
[1746794344179,39.2397085,172.05,171.94,1.0]
[1746794344580,5.8139,172.03,171.98,5.8153]
[1746794344873,5.8139,172.03,171.94,1.0]
[1746794345078,39.2397085,172.05,171.94,1.0]
[1746794345577,5.814,172.03,171.94,1.0]
[1746794345779,39.2397085,172.05,171.94,1.0]
[1746794346081,28.3,172.05,171.94,1.0]
[1746794346376,5.8136,172.04,171.94,1.0]
[1746794346779,5.8138,172.03,171.99,5.8148]
[1746794347679,5.8142,172.02,171.98,5.8153]
[1746794347878,5.8142,172.02,171.94,1.0]
[1746794348378,5.8139,172.03,171.98,5.8152]
[1746794348980,5.8141,172.02,171.98,5.8152]
[1746794349378,32.2028,172.05,171.99,5.8151]
[1746794349578,32.2028,172.05,171.94,1.0]
[1746794349783,32.2028,172.05,171.94,2.0]
[1746794350082,32.2028,172.05,171.97,5.8156]
[1746794350274,5.8144,172.02,171.97,5.8156]
[1746794350475,5.8144,172.02,171.98,5.8154]
[1746794350675,32.2028,172.05,171.94,2.0]
[1746794350880,32.2028,172.05,171.95,62.0]
[1746794351079,32.2028,172.05,171.99,5.8149]
[1746794351274,5.8138,172.03,171.99,5.8149]
[1746794351678,32.2028,172.05,172.0,5.8147]
[1746794351979,5.8136,172.04,172.0,5.8147]
[1746794353575,5.8136,172.04,172.01,5.8144]
[1746794353881,32.2028,172.05,171.94,2.0]
[1746794354276,5.8136,172.04,172.0,5.8146]
[1746794354576,32.2028,172.05,171.94,2.0]
[1746794354783,28.3,172.08,171.94,2.0]
[1746794355280,28.3,172.08,172.04,5.8134]
[1746794355582,28.3,172.08,172.0,28.3]
[1746794356683,28.3,172.08,172.01,2.17601682]
[1746794356986,28.3,172.08,172.02,2.17601682]
[1746794357175,34.1121,172.08,172.03,2.17601682]
[1746794357375,34.1121,172.08,172.04,2.17601682]
[1746794357581,34.1121,172.08,172.05,2.17634817]
[1746794357776,34.1121,172.08,172.06,2.17634817]
[1746794357976,34.1121,172.08,172.07,2.17635688]
[1746794358584,34.1121,172.08,172.04,5.8132]
[1746794359286,28.3,172.08,172.05,5.813]
[1746794359481,10.9397085,172.09,172.0,28.3]
[1746794359680,1.8874,172.12,172.01,1.8588]
[1746794359979,5.8116,172.1,172.06,5.8125]
[1746794360179,30.1674,172.12,172.01,1.8588]
[1746794360383,5.8112,172.11,172.07,5.8123]
[1746794361781,6.8409981,172.1,172.07,5.8123]
[1746794362185,6.8409981,172.1,172.08,5.8121]
[1746794362479,6.8409981,172.1,172.01,1.8588]
[1746794363186,6.8409981,172.1,172.07,5.8123]
[1746794364088,6.8409981,172.1,172.08,5.812]
[1746794367781,6.8409981,172.1,172.07,5.8123]
[1746794367985,12.6525981,172.1,172.07,5.8123]
[1746794368687,6.8409981,172.1,172.08,5.8119]
[1746794368886,6.8409981,172.1,172.01,1.8588]
[1746794369986,6.8409981,172.1,172.07,5.8122]
[1746794370487,6.8409981,172.1,172.08,5.812]
[1746794371185,6.8409981,172.1,172.01,1.8588]
[1746794371787,12.6524981,172.1,172.06,5.8127]
[1746794372185,6.8409981,172.07,172.01,1.8588]
[1746794372486,6.8409981,172.04,171.94,2.0]
[1746794372693,6.8409981,172.01,171.94,2.0]
[1746794372988,12.6554981,172.01,171.96,5.8161]
[1746794373184,6.8409981,172.01,171.94,2.0]
[1746794373389,5.8142,172.02,171.98,5.8154]
[1746794373592,8.6619981,172.05,171.94,2.0]
[1746794374093,3.8291,172.06,171.94,2.0]
[1746794374288,1.8638,172.06,171.94,2.0]
[1746794374792,1.8638,172.06,172.04,5.8133]
[1746794377985,1.8638,172.06,172.03,5.8136]
[1746794378786,6.8409981,172.04,171.95,460.4]
[1746794378990,6.8409981,172.04,171.95,488.64]
[1746794379693,5.8143,172.02,171.95,488.64]
[1746794379902,6.8409981,172.04,171.95,488.64]
[1746794380090,28.24,172.02,171.99,5.8151]
[1746794380394,28.24,172.02,171.95,488.64]
[1746794380595,34.0543,172.02,171.98,5.8154]
[1746794380794,28.24,172.02,171.95,488.64]
[1746794381193,34.0542,172.02,171.99,5.815]
[1746794381787,12.6554981,172.01,171.95,460.4]
[1746794382092,6.8409981,172.01,171.94,2.0]
[1746794382493,6.8409981,172.01,171.96,5.8161]
[1746794382998,5.8153,171.99,171.96,5.8161]
[1746794383299,28.24,172.02,171.94,2.0]
[1746794383806,28.24,172.02,172.01,5.8144]
[1746794384098,28.24,172.07,171.96,6.8409981]
[1746794384299,1.8495,172.1,172.0,28.24]
[1746794384599,5.8118,172.09,172.0,28.24]
[1746794384799,1.8495,172.1,172.05,5.8129]
[1746794384995,1.8495,172.1,172.0,28.24]
[1746794385192,5.8118,172.09,172.0,28.24]
[1746794385499,1.8495,172.1,172.0,28.24]
[1746794385693,12.79941472,172.1,172.0,28.24]
[1746794386198,5.8124,172.07,172.0,28.24]
[1746794386399,34.0524,172.07,171.97,494.3926]
[1746794386698,5.8128,172.06,172.02,5.8139]
[1746794387100,10.94991472,172.06,171.97,460.48]
[1746794387301,5.814,172.03,171.99,5.8149]
[1746794387800,3.7794,172.05,171.97,460.48]
[1746794388096,1.8412,172.05,171.97,460.48]
[1746794388297,10.94991472,172.07,171.97,460.48]
[1746794388895,5.8132,172.05,172.01,5.8144]
[1746794389096,10.94991472,172.07,171.97,460.48]
[1746794390195,28.22,172.08,171.97,460.48]
[1746794390601,34.0321,172.08,172.04,5.8133]
[1746794390805,28.22,172.08,171.97,460.48]
[1746794391395,1.8111,172.09,171.98,1.9898]
[1746794391596,1.8111,172.09,171.99,30.1952]
[1746794391799,3.6844,172.1,171.99,30.1952]
[1746794391999,1.8495,172.1,172.0,11.6296]
[1746794392302,28.22,172.11,172.0,11.6296]
[1746794393608,28.22,172.11,172.08,5.8119]
[1746794394311,28.22,172.11,171.99,30.1952]
[1746794394805,5.8116,172.1,172.06,5.8125]
[1746794395205,28.22,172.11,171.99,30.1952]
[1746794395411,5.8113,172.11,172.06,5.8125]
[1746794395610,28.22,172.1,171.99,30.1952]
[1746794396407,28.22,172.1,171.99,41.8252]
[1746794396607,28.22,172.1,171.99,30.1952]
[1746794397009,1.9359,172.13,172.0,11.6294]
[1746794397498,5.811,172.12,172.07,5.8123]
[1746794398411,5.8111,172.11,172.07,5.8123]
[1746794398708,1.9359,172.13,172.07,5.8123]
[1746794399210,5.811,172.12,172.07,5.8123]
[1746794399507,1.9359,172.13,172.08,5.812]
[1746794400011,1.9359,172.13,172.09,5.8117]
[1746794400711,1.9359,172.13,172.08,5.812]
[1746794400911,1.9359,172.13,172.0,11.6294]
[1746794401111,1.9359,172.13,172.06,5.8126]
[1746794401316,1.9359,172.13,172.01,28.2]
[1746794402009,10.94991472,172.09,171.99,1.9752]
[1746794402313,5.8126,172.07,172.03,5.8135]
[1746794402615,5.8126,172.07,171.99,1.9752]
[1746794402812,5.8128,172.06,171.99,1.9752]
[1746794403013,28.2,172.08,171.98,1.9898]
[1746794403314,31.9005,172.08,172.02,5.8139]
[1746794403516,5.8129,172.06,171.98,1.9898]
[1746794403712,31.9005,172.08,171.98,1.9898]
[1746794403914,37.7127,172.08,171.98,1.9898]
[1746794404711,37.7127,172.08,172.04,5.8131]
[1746794405112,10.94991472,172.09,171.98,1.9898]
[1746794405315,28.18,172.08,171.98,1.9898]
[1746794405615,33.9923,172.08,172.04,5.8131]
[1746794406315,5.8123,172.08,172.04,5.8131]
[1746794406517,28.18,172.08,171.98,1.9898]
[1746794407116,5.6364,172.13,171.99,11.6301]
[1746794407318,5.6364,172.13,171.98,1.9898]
[1746794407513,28.18,172.12,171.98,1.9898]
[1746794407818,30.1159,172.13,171.98,1.9898]
[1746794408019,30.1159,172.13,172.1,5.8112]
[1746794408219,1.9359,172.13,172.04,28.18]
[1746794408519,28.18,172.15,172.04,28.18]
[1746794408719,33.9898,172.15,172.11,5.8111]
[1746794409020,28.18,172.15,172.05,3.8474]
[1746794409214,28.18,172.15,172.09,5.8115]
[1746794409411,28.18,172.15,172.05,3.8474]
[1746794409616,28.18,172.15,172.09,5.8115]
[1746794409819,28.18,172.15,172.05,3.8474]
[1746794410819,28.18,172.15,172.1,5.8111]
[1746794411021,10.94991472,172.17,172.05,3.8474]
[1746794411222,10.94991472,172.17,172.06,1.816]
[1746794411422,10.94991472,172.17,172.15,5.8095]
[1746794411617,1.9089,172.18,172.09,28.18]
[1746794411823,28.18,172.19,172.17,5.8087]
[1746794412021,28.16,172.2,172.17,5.8087]
[1746794412914,28.16,172.2,172.09,28.18]
[1746794413623,28.16,172.2,172.17,5.809]
[1746794414725,28.16,172.2,172.09,28.18]
[1746794415121,28.16,172.2,172.12,5.8105]
[1746794415321,10.94991472,172.17,172.06,1.816]
[1746794415517,10.94991472,172.17,172.04,28.16]
[1746794415821,10.94991472,172.13,172.03,1.0]
[1746794416024,5.812,172.09,172.03,1.0]
[1746794416230,28.16,172.12,172.04,5.8132]
[1746794416525,28.16,172.12,172.03,1.0]
[1746794416728,5.8119,172.09,172.05,5.8131]
[1746794417027,28.16,172.12,172.05,5.8131]
[1746794417229,28.16,172.12,172.04,5.8134]
[1746794417431,28.16,172.12,172.03,1.0]
[1746794418828,5.8111,172.11,172.06,5.8125]
[1746794419130,28.16,172.12,172.03,1.0]
[1746794419346,5.8123,172.08,172.03,1.0]
[1746794419545,28.16,172.12,172.03,1.0]
[1746794419841,5.8119,172.09,172.04,5.8132]
[1746794420142,28.16,172.12,172.03,1.0]
[1746794420441,5.8124,172.07,172.03,1.0]
[1746794420640,28.16,172.12,172.03,1.0]
[1746794421143,5.8123,172.08,172.04,5.8134]
[1746794421344,28.16,172.12,172.03,1.0]
[1746794421639,5.8119,172.09,172.04,5.8131]
[1746794421840,5.8119,172.09,172.03,1.0]
[1746794422035,28.16,172.12,172.03,1.0]
[1746794422236,39.10991472,172.12,172.03,1.0]
[1746794422542,5.8123,172.08,172.04,5.8133]
[1746794423843,5.8118,172.09,172.05,5.813]
[1746794424942,5.8123,172.08,172.04,5.8133]
[1746794425143,10.94991472,172.09,172.03,1.0]
[1746794425345,28.14,172.08,172.03,1.0]
[1746794425945,5.8128,172.06,172.03,6.8136]
[1746794426145,28.14,172.08,172.03,1.0]
[1746794426334,1.8986,172.07,172.03,1.0]
[1746794426538,5.8133,172.05,172.03,1.0]
[1746794426940,1.8986,172.07,172.03,1.0]
[1746794427147,5.8134,172.04,172.03,1.0]
[1746794429247,5.8144,172.02,171.95,1.9024]
[1746794429446,5.8144,172.02,171.98,5.8153]
[1746794429748,5.8144,172.02,171.95,1.9024]
[1746794430247,28.14,172.03,171.94,2.0]
[1746794431247,10.94991472,172.01,171.94,2.0]
[1746794431448,1.8241,172.0,171.94,2.0]
[1746794431643,5.475,172.0,171.94,2.0]
[1746794432847,5.8162,171.96,171.94,2.0]
[1746794433046,33.9562,171.96,171.94,2.0]
[1746794433245,28.14,171.96,171.94,2.0]
[1746794433849,28.14,171.96,171.84,1.9072]
[1746794434048,28.14,171.96,171.91,5.8178]
[1746794434350,28.14,171.96,171.84,1.9072]
[1746794435347,28.12,171.98,171.84,1.9072]
[1746794435751,28.12,171.98,171.94,5.8166]
[1746794436149,28.12,171.98,171.88,28.12]
[1746794436354,28.12,171.98,171.89,3.6623]
[1746794436851,28.12,171.98,171.94,5.8167]
[1746794437251,5.8158,171.97,171.92,5.8173]
[1746794437450,28.12,171.98,171.89,3.6623]
[1746794438351,357.0,172.03,171.89,3.6623]
[1746794438551,3.8197,172.06,171.89,3.6623]
[1746794438746,5.8132,172.05,172.0,5.8147]
[1746794438944,31.9397,172.06,171.95,28.12]
[1746794439247,28.12,172.06,171.96,1.798]
[1746794439446,28.12,172.06,172.03,5.8135]
[1746794439643,1.8184,172.09,171.97,3.9227]
[1746794439947,3.7975,172.11,171.97,3.9227]
[1746794440155,31.9175,172.11,171.97,3.9227]
[1746794440450,29.9846,172.11,171.97,3.9227]
[1746794440848,10.94991472,172.08,171.97,3.9227]
[1746794441049,5.8139,172.03,171.97,3.9227]
[1746794441253,28.12,172.05,171.96,1.798]
[1746794441546,10.94991472,172.04,171.96,1.798]
[1746794442355,10.94991472,172.04,172.0,5.8146]
[1746794442553,33.9333,172.05,171.96,1.798]
[1746794442750,28.12,172.05,171.96,1.798]
[1746794442951,10.94991472,172.04,171.96,5.8161]
[1746794443152,14.86751472,172.04,171.92,488.66]
[1746794443348,1.8955,172.03,171.92,488.66]
[1746794444554,10.94991472,172.0,171.92,460.54]
[1746794444756,28.1,171.99,171.9,1.8722]
[1746794446158,28.1,172.01,171.9,1.8722]
[1746794446663,5.8151,172.0,171.95,5.8162]
[1746794446960,28.1,172.01,171.95,5.8162]
[1746794447559,5.8151,171.99,171.95,5.8162]
[1746794447758,28.1,172.01,171.9,1.8722]
[1746794448158,28.1,172.01,171.94,5.8166]
[1746794448360,28.1,172.01,171.9,1.8722]
[1746794448761,5.8152,171.99,171.95,5.8164]
[1746794449561,28.1,172.01,171.94,5.8167]
[1746794449764,28.1,172.01,171.9,1.8722]
[1746794450256,28.1,172.01,171.89,3.9227]
[1746794450451,10.94991472,171.99,171.86,2.82828393]
[1746794450656,10.94991472,171.99,171.86,29.9162]
[1746794450961,5.8171,171.94,171.9,5.8179]
[1746794451964,5.8172,171.93,171.9,5.8179]
[1746794452466,5.8169,171.94,171.9,5.8179]
[1746794453363,5.8172,171.93,171.9,5.8179]
[1746794453766,28.1,171.95,171.9,5.8179]
[1746794453961,5.8169,171.94,171.9,5.8179]
[1746794455069,28.1,171.95,171.85,28.1]
[1746794455462,28.1,171.95,171.84,464.2651]
[1746794455767,5.8173,171.93,171.89,5.8183]
[1746794455967,28.1,171.95,171.89,5.8183]
[1746794456167,28.1,171.95,171.84,464.2651]
[1746794456364,28.1,171.97,171.85,1.8844]
[1746794456766,5.8164,171.96,171.85,1.8844]
[1746794456964,28.1,171.97,171.85,1.8844]
[1746794457269,33.9159,171.97,171.92,5.8173]
[1746794457567,28.1,171.97,171.85,1.8844]
[1746794457869,5.8162,171.96,171.85,1.8844]
[1746794458570,33.9161,171.97,171.92,5.8172]
[1746794458769,28.1,171.97,171.92,5.8172]
[1746794458964,28.1,171.97,171.85,1.8844]
[1746794459164,33.9158,171.97,171.85,1.8844]
[1746794459471,5.8158,171.97,171.85,63.8844]
[1746794459659,5.8158,171.97,171.92,5.8172]
[1746794459859,5.8163,171.96,171.92,5.8172]
[1746794460071,28.08,171.98,171.88,28.08]
[1746794460364,28.08,171.98,171.91,5.8177]
[1746794461069,28.08,171.98,171.85,1.8844]
[1746794461271,14.62551472,171.97,171.85,29.9644]
[1746794461464,3.6756,171.97,171.85,29.9644]
[1746794461663,5.8157,171.98,171.94,5.8166]
[1746794461866,28.08,171.99,171.9,28.08]
[1746794462066,33.8952,171.99,171.9,28.08]
[1746794462261,33.8952,171.99,171.95,5.8162]
[1746794462466,28.08,172.0,171.9,28.08]
[1746794462871,5.816,171.97,171.93,5.8169]
[1746794463170,28.08,172.0,171.9,28.08]
[1746794463371,5.8167,171.95,171.86,28.08]
[1746794463563,10.94991472,171.97,171.86,28.08]
[1746794463871,5.817,171.94,171.89,5.8184]
[1746794464370,28.08,171.95,171.9,5.8179]
[1746794465470,5.817,171.94,171.9,5.8179]
[1746794465671,28.08,171.95,171.86,28.08]
[1746794465979,5.8169,171.94,171.86,28.08]
[1746794466178,28.08,171.95,171.85,1.8844]
[1746794466569,5.8177,171.92,171.85,1.8844]
[1746794467070,28.08,171.95,171.85,1.8844]
[1746794468081,33.8966,171.95,171.85,1.8844]
[1746794468282,28.08,171.95,171.85,1.8844]
[1746794468681,28.08,171.98,171.85,1.8844]
[1746794468984,28.08,171.98,171.94,5.8165]
[1746794469286,28.08,171.98,171.88,28.08]
[1746794469486,28.08,171.98,171.95,5.8165]
[1746794469881,39.02991472,171.99,171.88,28.08]
[1746794470186,357.0,172.01,171.88,28.08]
[1746794470384,385.08,172.01,171.88,28.08]
[1746794470582,357.0,172.01,171.98,5.8153]
[1746794470778,14.71621472,172.02,171.98,5.8153]
[1746794471087,28.06,172.03,172.0,5.8145]
[1746794471284,28.06,172.03,171.93,28.06]
[1746794471582,28.06,172.03,171.96,5.8159]
[1746794471788,87.20662905,172.06,171.94,1.8838]
[1746794471989,81.39382905,172.06,171.95,3.9431]
[1746794472183,386.8563,172.07,171.95,3.9431]
[1746794472488,29.8563,172.07,172.03,5.8135]
[1746794472986,35.6689,172.07,171.98,28.06]
[1746794473486,35.6689,172.07,172.03,5.8137]
[1746794473889,12.81201472,172.1,171.98,28.06]
[1746794474086,24.41004953,172.15,171.98,28.06]
[1746794474087,14.76551472,172.14,171.98,28.06]
[1746794474282,28.06,172.12,171.98,28.06]
[1746794474477,5.8114,172.1,171.98,28.06]
[1746794474887,28.06,172.12,172.06,5.8126]
[1746794475086,5.8114,172.1,171.98,28.06]
[1746794475582,28.06,172.12,171.98,28.06]
[1746794475583,5.8117,172.09,171.98,28.06]
[1746794475788,28.06,172.12,171.98,28.06]
[1746794476591,5.8117,172.1,172.05,5.8131]
[1746794476892,28.06,172.12,172.05,5.8131]
[1746794477291,16.64341472,172.14,172.05,5.8131]
[1746794477491,28.04,172.11,172.06,5.8126]
[1746794477681,5.6935,172.14,172.03,28.04]
[1746794477987,31.7903,172.14,172.04,28.04]
[1746794478292,29.9179,172.14,172.04,28.04]
[1746794478487,1.8779,172.14,172.05,1.8696]
[1746794478991,1.8779,172.14,172.1,5.8112]
[1746794479388,10.94991472,172.17,172.05,1.8696]
[1746794479587,10.94991472,172.11,171.95,465.5831]
[1746794479884,28.04,172.1,171.96,1.9238]
[1746794480089,10.94991472,172.07,171.96,29.9638]
[1746794480290,1.8061,172.06,171.96,28.04]
[1746794480489,28.04,172.05,171.96,28.04]
[1746794480884,28.04,172.05,171.96,29.9638]
[1746794481297,5.8135,172.04,171.99,5.8149]
[1746794481488,28.04,172.05,171.96,29.9638]
[1746794481689,28.04,172.05,171.96,1.9238]
[1746794481891,10.94991472,172.03,171.95,461.64]
[1746794482092,10.94991472,172.03,171.95,1.0]
[1746794482294,1.9277,172.02,171.95,1.0]
[1746794482694,1.9166,172.01,171.95,1.0]
[1746794482895,5.8159,171.97,171.95,1.0]
[1746794483293,10.94991472,171.99,171.95,1.0]
[1746794483596,10.94991472,171.99,171.87,460.46]
[1746794483796,10.94991472,171.99,171.91,5.8178]
[1746794483999,5.8167,171.95,171.91,5.8178]
[1746794484401,10.94991472,171.99,171.92,5.8173]
[1746794484597,10.94991472,171.99,171.87,460.46]
[1746794484897,38.96991472,171.99,171.95,5.8163]
[1746794485296,44.78521472,171.99,171.95,5.8163]
[1746794485795,1.9166,172.01,171.91,28.02]
[1746794485994,28.02,172.03,171.91,28.02]
[1746794486497,1.8195,172.05,171.91,28.02]
[1746794486693,28.02,172.04,171.91,28.02]
[1746794488000,5.8141,172.03,171.91,28.02]
[1746794488301,28.02,172.04,171.91,28.02]
[1746794488498,5.8139,172.03,171.91,28.02]
[1746794488698,28.02,172.04,171.91,28.02]
[1746794489201,5.8142,172.02,171.91,28.02]
[1746794489501,28.02,172.04,171.91,28.02]
[1746794489799,5.8144,172.02,171.96,5.8158]
[1746794490394,5.8144,172.02,171.97,5.8158]
[1746794490600,5.8139,172.03,171.91,28.02]
[1746794491194,1.8061,172.06,171.91,28.02]
[1746794491399,10.94991472,172.08,171.91,28.02]
[1746794491595,28.02,172.07,171.91,28.02]
[1746794491792,28.02,172.07,172.03,5.8135]
[1746794492000,28.02,172.07,171.99,28.02]
[1746794492302,28.02,172.07,172.02,5.8141]
[1746794493103,33.8325,172.07,172.02,5.8141]
[1746794493495,28.02,172.07,172.03,5.8135]
[1746794493807,28.02,172.07,171.99,28.02]
[1746794494106,28.02,172.07,172.01,5.8142]
[1746794494310,28.02,172.07,171.99,28.02]
[1746794494499,28.02,172.07,171.95,1.9605]
[1746794494700,1.805,172.06,171.97,5.8157]
[1746794495004,5.8143,172.02,171.95,1.9605]
[1746794495207,5.8143,172.02,171.97,5.8158]
[1746794495903,5.8143,172.02,171.98,5.8154]
[1746794496105,28.02,172.03,171.95,1.9605]
[1746794496404,28.02,172.03,171.99,5.8148]
[1746794496602,33.8338,172.03,171.99,5.8148]
[1746794497307,33.8338,172.03,172.0,5.8148]
[1746794497495,28.02,172.03,172.0,5.8148]
[1746794497895,33.8338,172.03,171.99,5.8149]
[1746794498199,28.02,172.03,171.94,1.836]
[1746794498604,5.8145,172.01,171.97,5.8155]
[1746794498805,28.02,172.03,171.88,1.9659]
[1746794499005,10.94991472,172.0,171.89,28.0]
[1746794499206,10.94991472,172.0,171.88,3.8958]
[1746794499706,5.8163,171.96,171.92,5.8174]
[1746794500198,5.8162,171.96,171.91,5.8177]
[1746794500403,28.0,171.97,171.88,3.8958]
[1746794501009,33.8158,171.97,171.93,5.817]
[1746794501510,1.8655,171.99,171.88,3.8958]
[1746794501711,28.0,171.98,171.97,5.8158]
[1746794501909,28.0,171.98,171.89,1.9941]
[1746794502104,33.8148,172.0,171.95,5.8162]
[1746794502306,28.0,172.0,171.95,5.8162]
[1746794502711,5.8151,171.99,171.95,5.8162]
[1746794502904,28.0,172.0,171.96,5.8161]
[1746794503101,28.0,172.0,171.89,1.9941]
[1746794504612,28.0,172.0,171.96,5.8159]
[1746794505116,28.0,172.0,171.97,5.8155]
[1746794505307,9.5364,172.02,171.97,5.8155]
[1746794505610,9.5364,172.02,171.91,28.0]
[1746794505611,28.0,172.01,171.91,28.0]
[1746794505811,33.8147,172.01,171.96,5.816]
[1746794506511,33.8147,172.01,171.97,5.8158]
[1746794506813,28.0,172.01,171.91,28.0]
[1746794507002,28.0,172.01,171.99,5.8148]
[1746794507708,5.8135,172.04,172.0,5.8146]
[1746794507915,385.0,172.05,171.91,28.0]
[1746794508110,28.0,172.05,171.91,28.0]
[1746794508311,33.8132,172.05,171.91,28.0]
[1746794508611,28.0,172.05,171.91,28.0]
[1746794509111,33.8131,172.05,171.91,28.0]
[1746794509515,16.76281472,172.06,171.91,28.0]
[1746794509813,28.0,172.05,171.91,28.0]
[1746794510010,5.8134,172.04,171.91,28.0]
[1746794510211,28.0,172.05,171.91,28.0]
[1746794511215,33.8132,172.05,172.0,5.8145]
[1746794511615,33.8132,172.05,171.96,28.0]
[1746794511809,5.8134,172.04,172.0,5.8147]
[1746794512211,28.0,172.05,171.96,28.0]
[1746794512515,28.0,172.05,172.01,5.8142]
[1746794512910,16.76271472,172.06,172.01,5.8142]
[1746794513217,44.76271472,172.06,172.01,5.8142]
[1746794513617,38.94991472,172.06,172.0,5.8146]
[1746794514008,38.94991472,172.06,171.96,28.0]
[1746794514213,5.8136,172.04,171.99,5.8148]
[1746794514716,5.8136,172.04,172.0,5.8147]
[1746794515419,5.8136,172.04,172.01,5.8144]
[1746794515717,5.8136,172.04,171.96,28.0]
[1746794516016,38.94991472,172.06,171.99,5.8149]